{"text_format":"3","workbook":"xlsx","n_sheets":1,"sheets":["Budget för ideell verksamhet"],"not_rendered":{"charts":2,"images":1,"defined_names":1},"read":"whole","date_system":"1900"}

{"sheet":"Budget för ideell verksamhet","index":0,"n_rows":41,"n_cols":7,"rows_kept":41,"merged":[[17,1,17,6],[22,1,22,5]]}
[null,"Budget för ideell verksamhet",{"$nulls":3},"RÄKENSKAPSÅR",2012]
{"$rows_empty":7}
[null,null,{"$f":"CONCATENATE(\"RÅ \",RÅ-1)","v":"RÅ 2011"},{"$f":"CONCATENATE(\"RÅ \",RÅ)","v":"RÅ 2012"},{"$f":"CONCATENATE(\"RÅ \",RÅ)","v":"RÅ 2012"},{"$f":"CONCATENATE(\"RÅ \",RÅ)","v":"RÅ 2012"},{"$f":"CONCATENATE(\"RÅ \",RÅ)","v":"RÅ 2012"}]
[null,"INTÄKTER","FÖREGÅENDE ÅR","FÖRESLAGEN","FAKTISK","VARIANS","+/- FÖREGÅENDE ÅR"]
[null,"Insamlingar och evenemang",{"v":150000,"d":"150000.00"},{"v":200000,"d":"200000.00"},{"v":180000,"d":"180000.00"},{"$f":"Intäktstabell[[#This Row],[FAKTISK]]-Intäktstabell[[#This Row],[FÖRESLAGEN]]","v":{"v":-20000,"d":"(20000.00)"}},{"$f":"Intäktstabell[[#This Row],[FAKTISK]]-Intäktstabell[[#This Row],[FÖREGÅENDE ÅR]]","v":{"v":30000,"d":"30000.00"}}]
[null,"Stiftelse",{"v":50000,"d":"50000.00"},{"v":50000,"d":"50000.00"},{"v":50000,"d":"50000.00"},{"$f":"Intäktstabell[[#This Row],[FAKTISK]]-Intäktstabell[[#This Row],[FÖRESLAGEN]]","v":{"v":0,"d":"0.00"}},{"$f":"Intäktstabell[[#This Row],[FAKTISK]]-Intäktstabell[[#This Row],[FÖREGÅENDE ÅR]]","v":{"v":0,"d":"0.00"}}]
[null,"Donationer",{"v":30000,"d":"30000.00"},{"v":40000,"d":"40000.00"},{"v":20000,"d":"20000.00"},{"$f":"Intäktstabell[[#This Row],[FAKTISK]]-Intäktstabell[[#This Row],[FÖRESLAGEN]]","v":{"v":-20000,"d":"(20000.00)"}},{"$f":"Intäktstabell[[#This Row],[FAKTISK]]-Intäktstabell[[#This Row],[FÖREGÅENDE ÅR]]","v":{"v":-10000,"d":"(10000.00)"}}]
[null,"Ränteintäkter",{"$nulls":3},{"$f":"Intäktstabell[[#This Row],[FAKTISK]]-Intäktstabell[[#This Row],[FÖRESLAGEN]]","v":{"v":0,"d":"0.00"}},{"$f":"Intäktstabell[[#This Row],[FAKTISK]]-Intäktstabell[[#This Row],[FÖREGÅENDE ÅR]]","v":{"v":0,"d":"0.00"}}]
[null,"Övrigt",{"$nulls":3},{"$f":"Intäktstabell[[#This Row],[FAKTISK]]-Intäktstabell[[#This Row],[FÖRESLAGEN]]","v":{"v":0,"d":"0.00"}},{"$f":"Intäktstabell[[#This Row],[FAKTISK]]-Intäktstabell[[#This Row],[FÖREGÅENDE ÅR]]","v":{"v":0,"d":"0.00"}}]
[null,"SUMMA",{"$f":"SUBTOTAL(109,Intäktstabell[FÖREGÅENDE ÅR])","v":{"v":230000,"d":"230,000.00 kr"}},{"$f":"SUBTOTAL(109,Intäktstabell[FÖRESLAGEN])","v":{"v":290000,"d":"290,000.00 kr"}},{"$f":"SUBTOTAL(109,Intäktstabell[FAKTISK])","v":{"v":250000,"d":"250,000.00 kr"}},{"$f":"SUBTOTAL(109,Intäktstabell[VARIANS])","v":{"v":-40000,"d":"-40,000.00 kr"}},{"$f":"SUBTOTAL(105,Intäktstabell[+/- FÖREGÅENDE ÅR])","v":{"v":-10000,"d":"-10,000.00 kr"}}]
{"$rows_empty":9}
[null,null,{"$f":"CONCATENATE(\"RÅ \",RÅ-1)","v":"RÅ 2011"},{"$f":"CONCATENATE(\"RÅ \",RÅ)","v":"RÅ 2012"},{"$f":"CONCATENATE(\"RÅ \",RÅ)","v":"RÅ 2012"},{"$f":"CONCATENATE(\"RÅ \",RÅ)","v":"RÅ 2012"},{"$f":"CONCATENATE(\"RÅ \",RÅ)","v":"RÅ 2012"}]
[null,"UTGIFTER","FÖREGÅENDE ÅR","FÖRESLAGEN","FAKTISK","VARIANS","+/- FÖREGÅENDE ÅR"]
[null,"Löner",{"v":15000,"d":"15,000.00"},{"v":30000,"d":"30,000.00"},{"v":30000,"d":"30,000.00"},{"$f":"Utgiftstabell[[#This Row],[FAKTISK]]-Utgiftstabell[[#This Row],[FÖRESLAGEN]]","v":{"v":0,"d":"0.00"}},{"$f":"Utgiftstabell[[#This Row],[FAKTISK]]-Utgiftstabell[[#This Row],[FÖREGÅENDE ÅR]]","v":{"v":15000,"d":"15,000.00"}}]
[null,"Understöd",{"v":5000,"d":"5,000.00"},{"v":7500,"d":"7,500.00"},{"v":7800,"d":"7,800.00"},{"$f":"Utgiftstabell[[#This Row],[FAKTISK]]-Utgiftstabell[[#This Row],[FÖRESLAGEN]]","v":{"v":300,"d":"300.00"}},{"$f":"Utgiftstabell[[#This Row],[FAKTISK]]-Utgiftstabell[[#This Row],[FÖREGÅENDE ÅR]]","v":{"v":2800,"d":"2,800.00"}}]
[null,"Hyra",{"v":6000,"d":"6,000.00"},{"v":6000,"d":"6,000.00"},{"v":6000,"d":"6,000.00"},{"$f":"Utgiftstabell[[#This Row],[FAKTISK]]-Utgiftstabell[[#This Row],[FÖRESLAGEN]]","v":{"v":0,"d":"0.00"}},{"$f":"Utgiftstabell[[#This Row],[FAKTISK]]-Utgiftstabell[[#This Row],[FÖREGÅENDE ÅR]]","v":{"v":0,"d":"0.00"}}]
[null,"Vatten, el osv.",{"v":1000,"d":"1,000.00"},{"v":1200,"d":"1,200.00"},{"v":1150,"d":"1,150.00"},{"$f":"Utgiftstabell[[#This Row],[FAKTISK]]-Utgiftstabell[[#This Row],[FÖRESLAGEN]]","v":{"v":-50,"d":"(50.00)"}},{"$f":"Utgiftstabell[[#This Row],[FAKTISK]]-Utgiftstabell[[#This Row],[FÖREGÅENDE ÅR]]","v":{"v":150,"d":"150.00"}}]
[null,"Resor och möten",{"v":2500,"d":"2,500.00"},{"v":2000,"d":"2,000.00"},{"v":2800,"d":"2,800.00"},{"$f":"Utgiftstabell[[#This Row],[FAKTISK]]-Utgiftstabell[[#This Row],[FÖRESLAGEN]]","v":{"v":800,"d":"800.00"}},{"$f":"Utgiftstabell[[#This Row],[FAKTISK]]-Utgiftstabell[[#This Row],[FÖREGÅENDE ÅR]]","v":{"v":300,"d":"300.00"}}]
[null,"Arvoden",{"$nulls":3},{"$f":"Utgiftstabell[[#This Row],[FAKTISK]]-Utgiftstabell[[#This Row],[FÖRESLAGEN]]","v":{"v":0,"d":"0.00"}},{"$f":"Utgiftstabell[[#This Row],[FAKTISK]]-Utgiftstabell[[#This Row],[FÖREGÅENDE ÅR]]","v":{"v":0,"d":"0.00"}}]
[null,"Marknadsföring och annonser",{"$nulls":3},{"$f":"Utgiftstabell[[#This Row],[FAKTISK]]-Utgiftstabell[[#This Row],[FÖRESLAGEN]]","v":{"v":0,"d":"0.00"}},{"$f":"Utgiftstabell[[#This Row],[FAKTISK]]-Utgiftstabell[[#This Row],[FÖREGÅENDE ÅR]]","v":{"v":0,"d":"0.00"}}]
[null,"Försäkring",{"$nulls":3},{"$f":"Utgiftstabell[[#This Row],[FAKTISK]]-Utgiftstabell[[#This Row],[FÖRESLAGEN]]","v":{"v":0,"d":"0.00"}},{"$f":"Utgiftstabell[[#This Row],[FAKTISK]]-Utgiftstabell[[#This Row],[FÖREGÅENDE ÅR]]","v":{"v":0,"d":"0.00"}}]
[null,"Telefon",{"$nulls":3},{"$f":"Utgiftstabell[[#This Row],[FAKTISK]]-Utgiftstabell[[#This Row],[FÖRESLAGEN]]","v":{"v":0,"d":"0.00"}},{"$f":"Utgiftstabell[[#This Row],[FAKTISK]]-Utgiftstabell[[#This Row],[FÖREGÅENDE ÅR]]","v":{"v":0,"d":"0.00"}}]
[null,"Webbkostnader (webbplats, mötesutrymmen osv.)",{"$nulls":3},{"$f":"Utgiftstabell[[#This Row],[FAKTISK]]-Utgiftstabell[[#This Row],[FÖRESLAGEN]]","v":{"v":0,"d":"0.00"}},{"$f":"Utgiftstabell[[#This Row],[FAKTISK]]-Utgiftstabell[[#This Row],[FÖREGÅENDE ÅR]]","v":{"v":0,"d":"0.00"}}]
[null,"Utrustning",{"$nulls":3},{"$f":"Utgiftstabell[[#This Row],[FAKTISK]]-Utgiftstabell[[#This Row],[FÖRESLAGEN]]","v":{"v":0,"d":"0.00"}},{"$f":"Utgiftstabell[[#This Row],[FAKTISK]]-Utgiftstabell[[#This Row],[FÖREGÅENDE ÅR]]","v":{"v":0,"d":"0.00"}}]
[null,"Material",{"$nulls":3},{"$f":"Utgiftstabell[[#This Row],[FAKTISK]]-Utgiftstabell[[#This Row],[FÖRESLAGEN]]","v":{"v":0,"d":"0.00"}},{"$f":"Utgiftstabell[[#This Row],[FAKTISK]]-Utgiftstabell[[#This Row],[FÖREGÅENDE ÅR]]","v":{"v":0,"d":"0.00"}}]
[null,"Porto",{"$nulls":3},{"$f":"Utgiftstabell[[#This Row],[FAKTISK]]-Utgiftstabell[[#This Row],[FÖRESLAGEN]]","v":{"v":0,"d":"0.00"}},{"$f":"Utgiftstabell[[#This Row],[FAKTISK]]-Utgiftstabell[[#This Row],[FÖREGÅENDE ÅR]]","v":{"v":0,"d":"0.00"}}]
[null,"SUMMA",{"$f":"SUBTOTAL(109,Utgiftstabell[FÖREGÅENDE ÅR])","v":{"v":29500,"d":"29,500.00 kr"}},{"$f":"SUBTOTAL(109,Utgiftstabell[FÖRESLAGEN])","v":{"v":46700,"d":"46,700.00 kr"}},{"$f":"SUBTOTAL(109,Utgiftstabell[FAKTISK])","v":{"v":47750,"d":"47,750.00 kr"}},{"$f":"SUBTOTAL(109,Utgiftstabell[VARIANS])","v":{"v":1050,"d":"1,050.00 kr"}},{"$f":"SUBTOTAL(109,Utgiftstabell[+/- FÖREGÅENDE ÅR])","v":{"v":18250,"d":"18,250.00 kr"}}]